Cogmind - Beta 14 @@@ ROGUE MODE // 2024.11.25 @ 17:45:31 Player: opdo Result: Destroyed by H-66 Slayer with Gauss Rifle Performance ------------- Evolutions (4) 2000 Regions Visited (7) 1400 Robots Destroyed (30) 150 Value Destroyed (886) 886 Prototype IDs (24) 480 Alien Tech Used (0) 0 Bonus (418) 418 TOTAL SCORE: 5334 Bonus ------- Follower Combat Kills 142 Registered with UFD 300 Friendly Fire -24 Cogmind --------- Core Integrity 0/850 Matter 183/300 Energy 199/200 System Corruption 11% Temperature Cool (0) Movement Core (200) Ox3 Location -6/Factory Parts ------- > --- POWER (2) -------- Cold Fusion Reactor > --- PROPULSION (4) --- (None) > --- UTILITY (6) ------ Advanced Visual Processing Unit Experimental Terrain Scan Processor Target Analyzer Makeshift Hacking Suite System Shield > --- WEAPON (3) ------- (None) > --- INVENTORY (5) ---- DRS Beacon (Ready) Peak State ------------ > --- POWER ------------ Graviton Reactor Meta Core > --- PROPULSION ------- Armored Wheel Armored Wheel Nuclear Pulse Thruster Nuclear Pulse Thruster > --- UTILITY ---------- Small Storage Unit Improved Signal Interpreter Improved Terrain Scanner Experimental Terrain Scan Processor Improved Light Armor Plating Makeshift Hacking Suite > --- WEAPON ----------- Barrage Gun Battle Cannon > --- INVENTORY -------- Titanium Leg Gyrokinetic Inverter Nuclear Pulse Thruster Signal Interpreter DRS Beacon [Rating: 65] Favorites ----------- Power Meta Core Engine Ion Engine Power Core Meta Core Reactor Cold Fusion Reactor Propulsion Aluminum Leg Treads Light Treads Leg Aluminum Leg Wheel Armored Wheel Hover Unit Improved Gravmag System Flight Unit Nuclear Pulse Thruster Utility Small Storage Unit Device V3-11A's Pendant Storage Small Storage Unit Processor Experimental Terrain Scan Processor Hackware Makeshift Hacking Suite Protection Improved Light Armor Plating Weapon Barrage Gun Energy Gun Thermic Laser Ballistic Gun Barrage Gun Ballistic Cannon Battle Cannon Launcher Grenade Launcher Special Weapon Mining Laser Build | -11 -10 -10 -9 -9 -6 -6 -6 ------- Run | Yrd Mat Sub Rec Scr Fac Was Fac Slots Evolved 8 | . . . . . 8 . . Power 1 | . . . . . 1 . . Propulsion 2 | . . . . . 2 . . Utility 4 | . . . . . 4 . . Weapon 1 | . . . . . 1 . . Parts Attached 70 | 7 8 9 5 3 6 6 26 Power 8 | 1 1 1 . . 1 1 3 Engine 3 | 1 1 . . . . . 1 Core 3 | . . 1 . . 1 . 1 Reactor 2 | . . . . . . 1 1 Propulsion 25 | 2 3 2 3 3 1 3 8 Treads 1 | . . . 1 . . . . Leg 11 | 2 3 2 . 1 1 . 2 Wheel 7 | . . . 2 2 . . 3 Hover 1 | . . . . . . . 1 Flight 5 | . . . . . . 3 2 Utility 14 | 2 . 1 1 . 4 1 5 Device 4 | 1 . 1 . . 1 . 1 Storage 1 | 1 . . . . . . . Processor 5 | . . . . . 2 . 3 Hackware 2 | . . . 1 . . . 1 Protection 2 | . . . . . 1 1 . Artifact . | . . . . . . . . Weapon 23 | 2 4 5 1 . . 1 10 Energy Gun 2 | . . . . . . . 2 Energy Cannon . | . . . . . . . . Ballistic Gun 16 | 2 3 3 . . . 1 7 Ballistic Cannon 2 | . . . 1 . . . 1 Launcher 1 | . . 1 . . . . . Special Weapon 2 | . 1 1 . . . . . Impact Weapon . | . . . . . . . . Slashing Weapon . | . . . . . . . . Piercing Weapon . | . . . . . . . . Special Melee Weapon . | . . . . . . . . Unidentified Prototypes 3 | . . 1 . . . 1 1 Corrupted Parts 1 | . . . . . . . 1 System Corruption 2 | . . . . . . . 2 Parts Lost 34 | . 1 2 4 . 1 5 21 Power 6 | . 1 . . . 1 1 3 Propulsion 14 | . . 1 2 . . 2 9 Utility 4 | . . . 1 . . 1 2 Weapon 10 | . . 1 1 . . 1 7 Highest Loss Streak 11 | . 1 1 4 . 1 5 11 To Critical Strikes 2 | . 1 . . . . 1 . Average Slot Usage (%) 86 | . 99 91 78 87 79 70 71 Engine 2 | . 13 2 . . . . 2 Core 8 | . . 8 10 11 11 6 7 Leg 14 | . 28 29 8 4 6 . 2 Wheel 7 | . . . 12 17 12 10 2 Flight 1 | . . . . . . 10 8 Device 12 | . 14 18 14 10 6 6 3 Storage 9 | . 14 10 10 11 6 4 . Processor 3 | . . . . . 12 12 23 Hackware 5 | . . . . 11 6 6 6 Ballistic Gun 12 | . 26 12 14 11 6 4 4 Ballistic Cannon 4 | . . . 6 11 6 4 . Special Weapon 2 | . 1 8 . . . . . Peak Build Rating 65 | 7 8 27 31 33 52 65 65 Average Rating 29 | 5 7 22 26 31 50 52 56 On Entrance 24 | . 7 8 26 31 30 49 44 Naked Turns . | . . . . . . . . Heaviest Build 36 | 14 14 18 18 18 26 36 31 Greatest Support 32 | 20 20 30 32 32 24 24 21 Greatest Overweight (x) 6 | 3 . . . 1 1 1 6 Average Overweight (x) . | . . . . . . . . Largest Inventory Capacity 8 | 8 8 8 8 8 8 8 5 Average Capacity 7 | 7 8 8 8 8 8 7 5 Most Carried 8 | 5 8 8 8 8 7 6 5 Average Carried 6 | 2 6 7 7 7 3 4 3 Final Capacity 8 | 8 8 8 8 8 8 5 5 Final Carried 8 | 5 8 8 7 8 5 4 1 Class Distribution -------------------- 72% | Mutant 24% | Scavenger-Mutant Dominant Class ---------------- Mutant | -10/Materials Scavenger-Mutant | -10/Subcaves Mutant | -9/Recycling Mutant | -9/Scraptown Mutant | -6/Factory Mutant | -6/Waste Mutant | -6/Factory Resources | -11 -10 -10 -9 -9 -6 -6 -6 ----------- Run | Yrd Mat Sub Rec Scr Fac Was Fac Matter Collected 1151 | 257 214 222 131 40 . . 287 Remotely . | . . . . . . . . Salvage Created 940 | 113 377 56 91 . . . 303 Parts 52 | 9 27 3 3 . . . 10 Haulers Intercepted . | . . . . . . . . Recyclers Shooed 3 | 1 1 . . . . . 1 Parts Field Recycled . | . . . . . . . . Retrieved Matter . | . . . . . . . . Parts Self-Destructed 16 | . . 16 . . . . . Prevented . | . . . . . . . . Kills | -11 -10 -10 -9 -9 -6 -6 -6 ------- Run | Yrd Mat Sub Rec Scr Fac Was Fac Combat Hostiles Destroyed 26 | . 13 4 2 . . . 7 Guns 21 | . 13 3 . . . . 5 Cannons 3 | . . . 2 . . . 1 AOE 1 | . . 1 . . . . . Classes Destroyed 9 | 2 3 1 1 . . . 2 Builder 1 | . 1 . . . . . . Tunneler 2 | 2 . . . . . . . Recycler 1 | 1 . . . . . . . Swarmer 10 | . 6 2 . . . . 2 Grunt 7 | . 7 . . . . . . Sentry 3 | . . . 2 . . . 1 Hunter 2 | . . . . . . . 2 Programmer 2 | . . . . . . . 2 Subdweller 2 | . . 2 . . . . . Best Kill Streak 3 | 2 3 2 1 . . . 2 Combat Bots Only 3 | . 3 2 1 . . . 2 Max Kills in Single Turn 2 | 1 1 2 1 . . . 1 Gunslinging 1 | . . 1 . . . . . Exploded 1 | . . 1 . . . . . Melee . | . . . . . . . . Uniques/NPCs Destroyed . | . . . . . . . . Combat | -11 -10 -10 -9 -9 -6 -6 -6 -------- Run | Yrd Mat Sub Rec Scr Fac Was Fac Hostile Shots Fired 383 | . 60 63 16 . 3 2 239 Missed 122 | . 15 31 1 . 1 . 74 Damage Taken 4040 | . 433 523 237 . 43 89 2715 Core 996 | . 70 37 33 . . 20 836 Absorbed by Shields . | . . . . . . . . Core Remaining (%) 72 | 100 . . . 44 . . . Volleys Fired 148 | 8 58 43 11 . 1 . 27 Largest 3 | 2 2 2 2 . 2 . 3 Hottest 170 | 40 100 100 67 . 67 . 170 Shots Fired 254 | 16 104 56 21 . 2 . 55 Gun 197 | 16 92 22 16 . 1 . 50 Cannon 11 | . . . 5 . 1 . 5 Launcher 9 | . . 9 . . . . . Special 37 | . 12 25 . . . . . Kinetic 182 | 16 92 22 21 . 2 . 29 Thermal 63 | . 12 25 . . . . 26 Explosive 9 | . . 9 . . . . . Electromagnetic . | . . . . . . . . Robot Hit Streak 13 | 4 13 13 7 . 1 . 10 Robot Miss Streak 7 | 2 7 4 2 . 1 . 4 Penetration Max . | . . . . . . . . Secondary Targets 4 | . 3 1 . . . . . Max Gunslinging Chain 1 | . 1 1 . . . . . Shots Hit Robots 141 | 9 61 18 16 . 1 . 36 Core Hits 63 | 4 29 8 3 . . . 19 Critical Kills . | . . . . . . . . Critical Parts Destroyed 1 | . 1 . . . . . . Critical Strikes 9 | . 1 . 1 . . . 7 Burn 7 | . . . . . . . 7 Destroy 1 | . 1 . . . . . . Blast 1 | . . . 1 . . . . Melee Attacks . | . . . . . . . . Impact . | . . . . . . . . Slashing . | . . . . . . . . Piercing . | . . . . . . . . Sneak Attacks . | . . . . . . . . Combat Hostiles . | . . . . . . . . Follow-up Attacks . | . . . . . . . . Damage Inflicted 2320 | 91 542 608 334 . 15 . 730 Guns 1587 | 91 514 147 211 . . . 624 Cannons 208 | . . . 110 . 15 . 83 Explosions 437 | . . 437 . . . . . Melee . | . . . . . . . . Ramming 40 | . 4 . 13 . . . 23 Kinetic 1413 | 91 514 147 321 . 15 . 325 Thermal 430 | . 24 24 . . . . 382 Explosive 437 | . . 437 . . . . . Electromagnetic . | . . . . . . . . Impact . | . . . . . . . . Slashing . | . . . . . . . . Piercing . | . . . . . . . . Highest Corruption 11 | . . . . . . . 11 Average Corruption 10 | . . . . . . . 10 Corruption Purged . | . . . . . . . . Corruption Blocked . | . . . . . . . . Effects 24 | . . . . . . . 24 Message Errors 3 | . . . . . . . 3 Matter Fused 6 | . . . . . . . 6 Heat Flow Errors 2 | . . . . . . . 2 Energy Discharges 1 | . . . . . . . 1 Parts Rejected 2 | . . . . . . . 2 Data Loss (minor) 2 | . . . . . . . 2 Data Loss (major) 2 | . . . . . . . 2 Misfires 3 | . . . . . . . 3 Alerts 1 | . . . . . . . 1 Misdirections 2 | . . . . . . . 2 Overload Shots . | . . . . . . . . Overflow Damage . | . . . . . . . . Projectiles . | . . . . . . . . Explosions . | . . . . . . . . Melee . | . . . . . . . . Knockbacks 1 | . . . . . . . 1 Impact . | . . . . . . . . Kinetic 1 | . . . . . . . 1 Secondary . | . . . . . . . . Self-Inflicted Damage 13 | . . . 6 . . . 7 Shots . | . . . . . . . . Rammed 4 | . . . 1 . . . 3 Targets Rammed 9 | . 1 . 1 . . . 7 Kicked 5 | . 1 . . . . . 4 Crushed . | . . . . . . . . Highest Temperature 350 | . 110 . 86 . 20 . 350 Average Temperature 73 | . 43 . 33 . 15 . 115 Received Heat Transfer 711 | . 120 81 108 . . . 402 Effects 1 | . . . . . . . 1 Energy Bleed 1 | . . . . . . . 1 Siege Activations . | . . . . . . . . Robots Corrupted . | . . . . . . . . Combat Hostiles . | . . . . . . . . Parts Fried 1 | . . . . . . . 1 Impact Corruptions . | . . . . . . . . Robots Melted 1 | . . . . . . . 1 Combat Hostiles 1 | . . . . . . . 1 Parts Melted 12 | . . . . . . . 12 Heat Transferred 1750 | . 50 50 . . . . 1650 Parts Sabotaged . | . . . . . . . . Parts Stolen . | . . . . . . . . Parts Stripped . | . . . . . . . . Power Chain Reactions . | . . . . . . . . Alert | -11 -10 -10 -9 -9 -6 -6 -6 ------- Run | Yrd Mat Sub Rec Scr Fac Was Fac Peak Influence 243 | 15 243 . 213 . 15 1 149 Initial 34 | . 9 . 34 . . 1 . Average 74 | 7 132 . 77 . 1 . 50 Maximum Alert Level 1 | . 1 . 1 . . . . Low Security (%) 92 | 100 73 . 96 . 100 100 100 Level 1 7 | . 26 . 3 . . . . Level 2 . | . . . . . . . . Level 3 . | . . . . . . . . Level 4 . | . . . . . . . . Level 5 . | . . . . . . . . High Security . | . . . . . . . . Max Security . | . . . . . . . . Squads Dispatched 9 | . 2 . . . 1 . 6 Investigation 4 | . 1 . . . 1 . 2 Extermination 2 | . . . . . . . 2 Reinforcement 3 | . 1 . . . . . 2 Assault . | . . . . . . . . Garrison . | . . . . . . . . Intercept . | . . . . . . . . Searches Triggered . | . . . . . . . . Construction Impeded . | . . . . . . . . Haulers Reinforced 1 | . . . . . . . 1 Active Scanning Responses . | . . . . . . . . Cargo Convoy Interrupts . | . . . . . . . . Stealth | -11 -10 -10 -9 -9 -6 -6 -6 --------- Run | Yrd Mat Sub Rec Scr Fac Was Fac Distress Signals 2 | . 2 . . . . . . Communications Jammed . | . . . . . . . . Distress Signals . | . . . . . . . . Times Spotted 67 | . 22 16 2 . 2 6 19 Peak Tracking Total 6 | . 5 5 1 . 3 6 6 Tactical Retreats 3 | . . 1 . . . . 2 Traps | -11 -10 -10 -9 -9 -6 -6 -6 ------- Run | Yrd Mat Sub Rec Scr Fac Was Fac Traps Triggered 4 | . 1 1 . . 1 . 1 Indirectly . | . . . . . . . . Trap Hack Attempts . | . . . . . . . . Triggered . | . . . . . . . . Disarmed . | . . . . . . . . Reprogrammed . | . . . . . . . . Reused . | . . . . . . . . Traps Extracted . | . . . . . . . . Installed . | . . . . . . . . Triggered . | . . . . . . . . Machines | -11 -10 -10 -9 -9 -6 -6 -6 ---------- Run | Yrd Mat Sub Rec Scr Fac Was Fac Machines Disabled 1 | . . 1 . . . . . Max in Single Turn 1 | . . 1 . . . . . Machines Repaired . | . . . . . . . . Machines Dismantled . | . . . . . . . . Machines Sabotaged . | . . . . . . . . Overloaded Fab Kills . | . . . . . . . . Hacking | -11 -10 -10 -9 -9 -6 -6 -6 --------- Run | Yrd Mat Sub Rec Scr Fac Was Fac Machines Accessed 26 | . 4 1 11 2 1 . 7 Terminals 11 | . 4 . 4 . . . 3 Fabricators . | . . . . . . . . Repair Stations 3 | . . . . . . . 3 Recycling Units 8 | . . . 6 . 1 . 1 Scanalyzers . | . . . . . . . . Garrison Access . | . . . . . . . . Total Hacks 74 | . 18 9 19 10 1 . 17 Successful 50 | . 13 9 11 10 1 . 6 Failed 24 | . 5 . 8 . . . 11 Catastrophic 3 | . 1 . 2 . . . . Database Lockouts . | . . . . . . . . Manual 28 | . 8 . 12 . 1 . 7 Terminals 38 | . 18 . 12 . . . 8 Fabricators . | . . . . . . . . Repair Stations 8 | . . . . . . . 8 Recycling Units 8 | . . . 6 . 1 . 1 Scanalyzers . | . . . . . . . . Garrison Access . | . . . . . . . . Terminal Hacks 32 | . 9 9 4 10 . . . Record 18 | . . 8 . 10 . . . Robot Analysis 3 | . 2 . 1 . . . . Prototype ID Bank 2 | . 2 . . . . . . Branch Access Points 1 | . 1 . . . . . . Recycling Unit Index 1 | . . . 1 . . . . Alert Level 1 | . 1 . . . . . . Locate Traps 1 | . 1 . . . . . . Zone Layout 3 | . 2 . 1 . . . . Derelict Proto ID Bank 1 | . . 1 . . . . . Release Object 1 | . . . 1 . . . . Fabricator Hacks . | . . . . . . . . Repair Station Hacks 3 | . . . . . . . 3 Scan Component 3 | . . . . . . . 3 Recycling Unit Hacks . | . . . . . . . . Scanalyzer . | . . . . . . . . Garrison Access Hacks . | . . . . . . . . Unauthorized Hacks 15 | . 4 . 7 . 1 . 3 Terminals 7 | . 4 . 1 . . . 2 Track 1 | . . . 1 . . . . Botnet 4 | . 3 . . . . . 1 Detonate 1 | . . . . . . . 1 Operators 1 | . 1 . . . . . . Fabricators . | . . . . . . . . Repair Stations 2 | . . . . . 1 . 1 Recycling Units 6 | . . . 6 . . . . Tunnel 6 | . . . 6 . . . . Fedlink 2 | . . . . . 1 . 1 Scanalyzers . | . . . . . . . . Garrison Access . | . . . . . . . . Data Cores Recovered . | . . . . . . . . Used . | . . . . . . . . Hacking Detections 12 | . 3 . 3 . . . 6 Full Trace Events 4 | . . . 3 . . . 1 Feedback Events . | . . . . . . . . Feedback Blocked . | . . . . . . . . Robot Schematics Acquired . | . . . . . . . . Robots Built . | . . . . . . . . Authchips . | . . . . . . . . Time . | . . . . . . . . Total Robot Build Rating . | . . . . . . . . Part Schematics Acquired . | . . . . . . . . Parts Built . | . . . . . . . . Authchips . | . . . . . . . . Time . | . . . . . . . . Total Part Build Rating . | . . . . . . . . Parts Repaired . | . . . . . . . . Time . | . . . . . . . . Parts Recycled . | . . . . . . . . Recycled Matter . | . . . . . . . . Retrieved Matter . | . . . . . . . . Retrieved Components . | . . . . . . . . Parts Scanalyzed . | . . . . . . . . Part Schematics Acquired . | . . . . . . . . Parts Damaged . | . . . . . . . . Bothacking | -11 -10 -10 -9 -9 -6 -6 -6 ------------ Run | Yrd Mat Sub Rec Scr Fac Was Fac Used RIF Installer . | . . . . . . . . Robots Hacked . | . . . . . . . . Non-combat . | . . . . . . . . Combat . | . . . . . . . . Robot Hacks Applied . | . . . . . . . . Relay Couplers Released . | . . . . . . . . Fabnet Peak Effective % . | . . . . . . . . Robots Rewired 5 | . . . 5 . . . . Allies Hacked . | . . . . . . . . Hacks Repelled . | . . . . . . . . Allies | -11 -10 -10 -9 -9 -6 -6 -6 -------- Run | Yrd Mat Sub Rec Scr Fac Was Fac Total Allies 16 | . . 9 5 . . . 2 Largest Group 8 | . . 8 3 1 . . 2 Highest-Rated Group 150 | . . 150 55 8 . . 62 Highest-Rated Ally 31 | . . 19 27 8 . . 31 Total Orders . | . . . . . . . . Ally Attacks 59 | . . 52 1 . . . 6 Total Damage 781 | . . 686 29 . . . 66 Kills 11 | . . 9 . . . . 2 Allies Corrupted . | . . . . . . . . Allies Melted . | . . . . . . . . Intel | -11 -10 -10 -9 -9 -6 -6 -6 ------- Run | Yrd Mat Sub Rec Scr Fac Was Fac Robot Analysis Total 3 | . 2 . 1 . . . . Derelict Logs Recovered 3 | . . 1 . 2 . . . Drone Launches . | . . . . . . . . Drone Recoveries . | . . . . . . . . Exploration | -11 -10 -10 -9 -9 -6 -6 -6 ------------- Run | Yrd Mat Sub Rec Scr Fac Was Fac Turns Passed 6806 | 125 699 1873 605 2403 91 86 924 Spaces Moved 5661 | 69 404 1412 480 2322 77 95 802 Core 27 | 9 . . . . . . 18 Treads 3 | . . . 3 . . . . Legs 2137 | 60 404 1412 196 1 . . 64 Wheels 3055 | . . . 281 2321 77 74 302 Hover 150 | . . . . . . . 150 Flight 289 | . . . . . . 21 268 Fastest Speed 28 | 50 120 120 100 90 90 42 28 Average Speed 108 | 126 120 120 108 102 103 80 97 Slowest Speed 350 | 200 120 120 160 200 105 105 350 Overloaded Moves . | . . . . . . . . Propulsion Burnouts . | . . . . . . . . Robots Hopped . | . . . . . . . . Cave-ins Triggered . | . . . . . . . . Exploration Rate (%) 54 | 4 79 71 87 93 2 73 24 Regions Visited 7 Branch Regions 3 Pre-discovered Areas 7 | . . 1 6 . . . . Known Exits Taken . | . . . . . . . . Unknown Exits Taken 5 | 1 1 1 1 1 . . . Scrap Searched 10 | . . 8 . 2 . . . Spaces Dug 4 | . 4 . . . . . . Terrain Destroyed 14 | . 4 10 . . . . . Melee . | . . . . . . . . Projectile 4 | . 4 . . . . . . AOE 10 | . . 10 . . . . . Terrain Rammed . | . . . . . . . . Walls Destroyed . | . . . . . . . . Machines Disabled . | . . . . . . . . Actions | -11 -10 -10 -9 -9 -6 -6 -6 --------- Run | Yrd Mat Sub Rec Scr Fac Was Fac Total 6044 | 88 506 1489 545 2340 87 102 887 Wait 50 | . 29 9 2 . . . 10 Move 5655 | 68 403 1411 479 2321 77 94 802 Hop . | . . . . . . . . Pick Up 36 | 5 3 8 3 7 3 1 6 Fast Attach 36 | 7 . 2 2 2 . 3 20 Attach 22 | . 1 3 3 . 6 3 6 Detach 5 | . . 1 1 1 . 1 1 Swap 12 | . 7 4 . 1 . . . Drop 30 | . 4 8 2 8 . . 8 Fire 148 | 8 58 43 11 . 1 . 27 Melee . | . . . . . . . . Ram 4 | . . . 1 . . . 3 Kick 5 | . 1 . . . . . 4 Crush . | . . . . . . . . Escape Stasis . | . . . . . . . . Rewire 41 | . . . 41 . . . . Trap . | . . . . . . . . Miscellaneous . | . . . . . . . . Route ------- -11/Scrapyard -10/Materials (discovered 4 exits: [*Mat x2] / *Min / *Sub) -10/Subcaves (discovered 2 exits: [*Mat] / *Rec) -9/Recycling (discovered 2 exits: [*Fac] / *Scr) -9/Scraptown (discovered 2 exits: *Fac x2) -6/Factory -6/Waste -6/Factory (discovered 1 exit: [Low]) History --------- Turn | Location | Event 29 | -11/Scrapyard | Discovered new exit (range 15) 126 | -11/Scrapyard | Entered Materials 199 | -10/Materials | Identified exit to Mines 317 | -10/Materials | Build established: Mutant 393 | -10/Materials | Discovered new exit (range 16) 596 | -10/Materials | Discovered new exit (range 16) 810 | -10/Materials | Discovered new exit (range 3) 825 | -10/Materials | Entered Subcaves 880 | -10/Subcaves | Ambushed by Subdwellers from Twisted Machinery 1119 | -10/Subcaves | Visited 4L-MR0's lab 1137 | -10/Subcaves | Found Meta Core 1139 | -10/Subcaves | Attached Meta Core, gained temporary slots: Propulsion, Utility, Weapon 1215 | -10/Subcaves | Visited triangular shrine 1223 | -10/Subcaves | Found Prototype Device 1223 | -10/Subcaves | Identified V3-11A's Pendant 1228 | -10/Subcaves | Befriended Subdweller 1255 | -10/Subcaves | Shifting Twisted Machinery released Sub. Laser 1276 | -10/Subcaves | Shifting Twisted Machinery released Sub. Monowheel 1293 | -10/Subcaves | Befriended Subdweller 1333 | -10/Subcaves | Befriended Subdweller 1376 | -10/Subcaves | Build established: Scavenger-Mutant 1468 | -10/Subcaves | Befriended Subdweller 1748 | -10/Subcaves | Befriended Subdweller 1753 | -10/Subcaves | Befriended Subdweller 1801 | -10/Subcaves | Discovered new exit (range 3) 1831 | -10/Subcaves | Learned location of Zion (-6) 1913 | -10/Subcaves | Befriended Subdweller 2523 | -10/Subcaves | Befriended Subdweller 2523 | -10/Subcaves | Befriended Subdweller 2687 | -10/Subcaves | Discovered new exit (range 10) 2698 | -10/Subcaves | Entered Recycling 2706 | -9/Recycling | Lost 5 allies 2961 | -9/Recycling | Core integrity fell below 50% 2988 | -9/Recycling | Lost 4 parts (2n1u1w) 2990 | -9/Recycling | Discovered new exit (range 16) 3008 | -9/Recycling | Build established: Mutant 3274 | -9/Recycling | Scanned before Scraplab entrance 3289 | -9/Recycling | Entered Scraplab 3301 | -9/Recycling | Discovered new exit (range 3) 3303 | -9/Recycling | Entered Scraptown 3303 | -9/Scraptown | Accompanied by 1 ally 3533 | -9/Scraptown | Discovered new exit (range 11) 3583 | -9/Scraptown | Scanned Subdweller tech in exchange for log data 3586 | -9/Scraptown | Learned Research terminal intel 3587 | -9/Scraptown | Learned Factory emergency access door positions 3625 | -9/Scraptown | Visited CR-KLE's Repair Center 3660 | -9/Scraptown | Visited The Evicted 3698 | -9/Scraptown | Visited Awakened 3707 | -9/Scraptown | Visited Shadow of the Wyrm 3742 | -9/Scraptown | Visited UFD Registry 3742 | -9/Scraptown | Registered with UFD as "Gravslasher" 3756 | -9/Scraptown | Visited IN-MT5's Study 3776 | -9/Scraptown | Visited Spacefarers 3788 | -9/Scraptown | Visited Assassins FH 3849 | -9/Scraptown | Visited Junk Repository 3875 | -9/Scraptown | Visited Observation Area 3918 | -9/Scraptown | Visited Curators Association 4133 | -9/Scraptown | Visited Derelict Rescue Squad 4144 | -9/Scraptown | Found DRS Beacon 4163 | -9/Scraptown | Found DRS Beacon 4182 | -9/Scraptown | Visited Scrapoid Pod Storage 4250 | -9/Scraptown | Visited Research Penetration Think Tank 4381 | -9/Scraptown | Visited Supply Room 4400 | -9/Scraptown | Visited LU-1G1's Boring Crew 4449 | -9/Scraptown | Visited Infowarlord's Domain 4455 | -9/Scraptown | Found Exp. Terrain Scan Processor 5158 | -9/Scraptown | Discovered new exit (range 5) 5566 | -9/Scraptown | Delivered V3-11A's Pendant to T0-NE2 in exchange for information 5706 | -9/Scraptown | Entered Factory 5706 | -6/Factory | Evolved 8 slots: Power x1, Propulsion x2, Utility x4, Weapon x1 5797 | -6/Factory | Sucked down chute 5797 | -6/Factory | Entered Waste 5815 | -6/Waste | Spotted C-40 Crusher 5827 | -6/Waste | Spotted C-40 Crusher 5828 | -6/Waste | Spotted C-40 Crusher 5845 | -6/Waste | Spotted C-40 Crusher 5857 | -6/Waste | Crushed by Compactor (1 part destroyed, 2 dropped) 5860 | -6/Waste | Crushed by Compactor (1 part destroyed, 2 dropped) 5875 | -6/Waste | Spotted C-40 Crusher 5876 | -6/Waste | Discovered new exit (range 16) 5877 | -6/Waste | Spotted C-40 Crusher 5882 | -6/Waste | Identified exit to Factory 5883 | -6/Waste | Entered Factory 5891 | -6/Factory | Lost 5 parts (1p2n1u1w) 5985 | -6/Factory | Allied Derelicts emerged from ambush trap array 6010 | -6/Factory | Discovered new exit (range 15) 6343 | -6/Factory | Core integrity fell below 50% 6343 | -6/Factory | System corruption reached 10% 6365 | -6/Factory | Lost 11 parts (1p5n1u4w) 6795 | -6/Factory | Core integrity fell below 20% 6807 | -6/Factory | Destroyed by H-66 Slayer with Gauss Rifle Last Messages --------------- System corrupted: FCS attempts to trigger Hvy. Machine Gun. System corrupted: Hvy. Machine Gun misfires. Penetrated by Slug. Imp. Deuterium Engine destroyed. Slug penetrates Wall. Com. Wheel destroyed. Slug penetrates Wall. Penetrated by Slug. Hvy. Machine Gun destroyed. System corrupted: Matter fused (-7). K-01 Serf destroyed. Imp. Gravmag System destroyed. Penetrated by Slug. Thermic Laser destroyed. Penetrated by Slug. Critical hit (Burn: +37). Slug penetrates Wall. Imp. Signal Interpreter destroyed. Penetrated by Slug. Map ----- +----------------------------------------------------+ | ?????????????????????????????????????????????????? | | ?????????????????????????????????????????????????? | | ?????????????????????????????????????????????????? | | ?????????????????????????????????????????????????? | | ?????????????????????????????????????????????????? | | ?????????????????????????????????????????????????? | | ?????????????????????????????????????????????????? | | ?????????????????????????????????????????????????? | | ?????????????????????????????????????????????????? | | ?????????????????????????????????????????????????? | | ?????????????????????????????????????????????????? | | #????????????????????????????????????????????????? | | #????????????????????????????????????????????????? | | #?????????????##########?????????????????????????? | | ??????????????# #?????????????????????????? | | ??????????????# """ #?????????????????????????? | | ??????????????# """ #?????????????????????????? | | ??????????????# """ #?????????????????????????? | | ??????????????# #?????????????????????????? | | ??????????????# !! #?????????????????????????? | | ??????????????# !! #?????????????????????????? | | ??????????????? #?????????????????????????? | | ?#######?????????! ??????????????? #????????? | | ?# ############+############# #????????? | | ## g #??????? | | kA gg g =% @ ! #??????? | | ## g ! h #??????? | | ?# ####################### """" #??????? | | ####+###???????????????????????? """"???????????? | | # ! #???????????????????????????"""???????????? | | # !! #?????????????????????????????????????????? | | # !! #?????????????????????????????????????????? | | # #?????????????????????????????????????????? | | # ! #?????????????????????????????????????????? | | #! ! #?????????????????????????????????????????? | | ########?????????????????????????????????????????? | | ?????????????????????????????????????????????????? | | ?????????????????????????????????????????????????? | | ?????????????????????????????????????????????????? | | ?????????????????????????????????????????????????? | | ?????????????????????????????????????????????????? | | ?????????????????????????????????????????????????? | | ?????????????????????????????????????????????????? | | ?????????????????????????????????????????????????? | | ?????????????????????????????????????????????????? | | ?????????????????????????????????????????????????? | | ?????????????????????????????????????????????????? | | ?????????????????????????????????????????????????? | | ?????????????????????????????????????????????????? | | ?????????????????????????????????????????????????? | +----------------------------------------------------+ Best States ------------- Heat Dissipation 37 Energy Generation 30 Energy Capacity 390 Matter Stores 300 Matter Capacity 300 Sight Range 20 Terrain Scan Range 16 Terrain Scan Density 1085 Armor Coverage 150 Evasion (%) 64 Target Analysis 5 Recoil Reduction 1 Energy Filtering 30 Offensive Hacking 11 Defensive Hacking 10 Item Schematics ----------------- None Robot Schematics ------------------ None Fabricated ------------ Nothing Alien Tech Used ----------------- None Achievements -------------- None Challenges ------------ None Game ------ Seed ReflectiveBarrageDetector Manual? 0 Play Time 00:55:33 Cumulative 58.8 hours Start 2024.11.25 @ 15:25:39 End 2024.11.25 @ 17:45:31 Sessions 5 Manual Loads 0 Difficulty Rogue Special Mode None Game No. 174 Rogue 172 Adventurer 2 Explorer 0 Win Type - Total 0 Types 0/0/0/0/0/0/0/0/0 Lore% 53 Gallery% 51 Achievement% 37 Wizard Run 0 Options --------- Layout 2 ASCII 0 Keyboard 0 Movement Arrows Keybinds 0 Fullscreen 2 Font 24/Smallcaps Map View 50x44 Zoom Use 0% Tactical HUD 0 Map Filters NONE Filters NONE Steam 1 RUN: 6a251d84-5d90-42f7-bf35-404cb96be421